[Event "*** MasterClass Titled Tuesday Blitz"]
[Site "Chess.com"]
[Date "2017.10.03"]
[Round "4"]
[White "pastouche06"]
[Black "timator"]
[Result "0-1"]
[WhiteElo "2283"]
[BlackElo "2406"]
[TimeControl "180+2"]
[EndTime "13:48:04 PDT"]
[Termination "timator won by checkmate"]

1. e4 {[%clk 0:03:00.8]} 1... c5 {[%clk 0:03:00.5]} 2. Nf3 {[%clk 0:03:01.5]}
2... Nc6 {[%clk 0:03:01.7]} 3. Bb5 {[%clk 0:03:00.9]} 3... e6 {[%clk 0:03:02.1]}
4. Bxc6 {[%clk 0:02:59.3]} 4... bxc6 {[%clk 0:03:02.6]} 5. b3 {[%clk 0:02:50.8]}
5... Ne7 {[%clk 0:03:03.5]} 6. Bb2 {[%clk 0:02:49]} 6... Ng6 {[%clk 0:03:05.1]}
7. e5 {[%clk 0:02:48.9]} 7... f6 {[%clk 0:03:01.7]} 8. Qe2 {[%clk 0:02:47.3]}
8... Be7 {[%clk 0:03:02.1]} 9. h4 {[%clk 0:02:46.4]} 9... O-O {[%clk 0:03:01.7]}
10. h5 {[%clk 0:02:46.3]} 10... Nf4 {[%clk 0:03:02.8]} 11. Qe4 {[%clk
0:02:43.6]} 11... Nd5 {[%clk 0:02:58]} 12. Nc3 {[%clk 0:02:42.6]} 12... f5
{[%clk 0:02:58.1]} 13. Qe2 {[%clk 0:02:36.6]} 13... a5 {[%clk 0:02:58.3]} 14.
Nxd5 {[%clk 0:02:33.8]} 14... cxd5 {[%clk 0:02:58.9]} 15. d4 {[%clk 0:02:32.1]}
15... Ba6 {[%clk 0:02:59]} 16. Qd2 {[%clk 0:02:28.9]} 16... c4 {[%clk
0:02:59.6]} 17. Bc3 {[%clk 0:02:24.9]} 17... a4 {[%clk 0:02:59.1]} 18. Rb1
{[%clk 0:02:18.8]} 18... cxb3 {[%clk 0:02:58.7]} 19. axb3 {[%clk 0:02:18.7]}
19... axb3 {[%clk 0:03:00.6]} 20. Rxb3 {[%clk 0:02:13.5]} 20... Bc4 {[%clk
0:03:00.5]} 21. Rb1 {[%clk 0:02:13]} 21... d6 {[%clk 0:03:01.7]} 22. Qf4 {[%clk
0:02:12.3]} 22... dxe5 {[%clk 0:02:56.7]} 23. Nxe5 {[%clk 0:02:12.4]} 23... Bg5
{[%clk 0:02:22.4]} 24. Qg3 {[%clk 0:02:02.9]} 24... Bf6 {[%clk 0:02:18.8]} 25.
Rb7 {[%clk 0:01:53.3]} 25... Qc8 {[%clk 0:02:09.4]} 26. Rb2 {[%clk 0:01:27.1]}
26... Ra1+ {[%clk 0:02:04.6]} 27. Kd2 {[%clk 0:01:25.2]} 27... Rxh1 {[%clk
0:02:05.5]} 28. Bb4 {[%clk 0:01:18.2]} 28... f4 {[%clk 0:01:43.8]} 29. Qxf4
{[%clk 0:01:17.4]} 29... Rh4 {[%clk 0:01:40.7]} 30. Qg3 {[%clk 0:01:16]} 30...
Rxd4+ {[%clk 0:01:35]} 31. Kc1 {[%clk 0:01:17.4]} 31... Be2 {[%clk 0:01:27.8]}
32. Bxf8 {[%clk 0:01:15.3]} 32... Rd1# {[%clk 0:01:28.6]} 0-1

[Event "*** MasterClass Titled Tuesday Blitz"]
[Site "Chess.com"]
[Date "2017.10.03"]
[Round "4"]
[White "Kouzari"]
[Black "ruzomberok"]
[Result "1-0"]
[WhiteElo "2537"]
[BlackElo "2359"]
[TimeControl "180+2"]
[EndTime "13:48:07 PDT"]
[Termination "Kouzari won by checkmate"]

1. d4 {[%clk 0:02:37.9]} 1... d5 {[%clk 0:02:57.1]} 2. c4 {[%clk 0:02:39.8]}
2... c6 {[%clk 0:02:58.2]} 3. Nc3 {[%clk 0:02:37.8]} 3... Nf6 {[%clk 0:02:58.8]}
4. Nf3 {[%clk 0:02:38.3]} 4... e6 {[%clk 0:02:56.9]} 5. Bg5 {[%clk 0:02:38.3]}
5... dxc4 {[%clk 0:02:56.5]} 6. a4 {[%clk 0:02:38.8]} 6... b5 {[%clk 0:02:55.4]}
7. e4 {[%clk 0:02:27.5]} 7... Bb4 {[%clk 0:02:37.1]} 8. e5 {[%clk 0:02:24.3]}
8... h6 {[%clk 0:02:38.1]} 9. exf6 {[%clk 0:02:17.9]} 9... hxg5 {[%clk 0:02:39]}
10. fxg7 {[%clk 0:02:19.4]} 10... Rg8 {[%clk 0:02:39.3]} 11. h4 {[%clk
0:02:13.9]} 11... g4 {[%clk 0:02:40.2]} 12. Ne5 {[%clk 0:02:14.9]} 12... c5
{[%clk 0:02:31.9]} 13. h5 {[%clk 0:01:58.9]} 13... Rxg7 {[%clk 0:02:29.2]} 14.
h6 {[%clk 0:01:59.9]} 14... Rh7 {[%clk 0:02:26.8]} 15. Qxg4 {[%clk 0:01:56.9]}
15... Qxd4 {[%clk 0:02:18.2]} 16. Qg8+ {[%clk 0:01:47.6]} 16... Ke7 {[%clk
0:02:19]} 17. Ng6+ {[%clk 0:01:19.1]} 17... Kf6 {[%clk 0:02:04.3]} 18. Rh3
{[%clk 0:01:11.7]} 18... Qe4+ {[%clk 0:01:54.4]} 19. Re3 {[%clk 0:01:12.2]}
19... Qxg6 {[%clk 0:01:48.3]} 20. Qd8+ {[%clk 0:01:04.7]} 20... Kf5 {[%clk
0:01:49.3]} 21. Rf3+ {[%clk 0:00:48.1]} 21... Kg4 {[%clk 0:01:33.4]} 22. Rg3+
{[%clk 0:00:45.9]} 22... Kf4 {[%clk 0:01:31.4]} 23. Rxg6 {[%clk 0:00:42.9]}
23... fxg6 {[%clk 0:01:32.5]} 24. Qf6+ {[%clk 0:00:39.1]} 24... Kg4 {[%clk
0:01:32.5]} 25. Be2# {[%clk 0:00:39.1]} 1-0

[Event "*** MasterClass Titled Tuesday Blitz"]
[Site "Chess.com"]
[Date "2017.10.03"]
[Round "4"]
[White "ehrenfeld"]
[Black "Induwara_IM"]
[Result "1-0"]
[WhiteElo "2330"]
[BlackElo "2469"]
[TimeControl "180+2"]
[EndTime "13:48:17 PDT"]
[Termination "ehrenfeld won by resignation"]

1. e4 {[%clk 0:02:56.3]} 1... c6 {[%clk 0:02:59.9]} 2. d4 {[%clk 0:02:56.6]}
2... d5 {[%clk 0:03:01.4]} 3. exd5 {[%clk 0:02:57.2]} 3... cxd5 {[%clk
0:03:02.1]} 4. Bd3 {[%clk 0:02:58.6]} 4... Nc6 {[%clk 0:03:03.5]} 5. c3 {[%clk
0:02:59.7]} 5... Qc7 {[%clk 0:03:05]} 6. Bg5 {[%clk 0:03:00.6]} 6... Nf6 {[%clk
0:03:03.4]} 7. Nf3 {[%clk 0:02:59.8]} 7... Bg4 {[%clk 0:03:03.3]} 8. Nbd2 {[%clk
0:03:00.6]} 8... e6 {[%clk 0:03:04]} 9. Bh4 {[%clk 0:03:01.5]} 9... Bd6 {[%clk
0:03:04.6]} 10. Bg3 {[%clk 0:03:02.5]} 10... O-O {[%clk 0:03:05.2]} 11. O-O
{[%clk 0:03:02.8]} 11... a6 {[%clk 0:03:00.8]} 12. Re1 {[%clk 0:02:57.4]} 12...
b5 {[%clk 0:03:01.4]} 13. a3 {[%clk 0:02:57.7]} 13... Rab8 {[%clk 0:03:01.8]}
14. Qc2 {[%clk 0:02:52.9]} 14... Bh5 {[%clk 0:02:58.8]} 15. Ne5 {[%clk
0:02:52.8]} 15... Bg6 {[%clk 0:03:00]} 16. Bxg6 {[%clk 0:02:47.1]} 16... hxg6
{[%clk 0:03:00.1]} 17. Qd3 {[%clk 0:02:46.7]} 17... a5 {[%clk 0:02:58.8]} 18.
Rac1 {[%clk 0:02:45.5]} 18... Bxe5 {[%clk 0:02:55.4]} 19. Bxe5 {[%clk
0:02:40.1]} 19... Nxe5 {[%clk 0:02:55.9]} 20. dxe5 {[%clk 0:02:36.7]} 20... Nd7
{[%clk 0:02:56.4]} 21. Qg3 {[%clk 0:02:35.6]} 21... Rfc8 {[%clk 0:02:52.7]} 22.
Nf3 {[%clk 0:02:35.9]} 22... b4 {[%clk 0:02:40.5]} 23. axb4 {[%clk 0:02:35.4]}
23... axb4 {[%clk 0:02:40.9]} 24. h4 {[%clk 0:02:04.4]} 24... bxc3 {[%clk
0:02:41]} 25. bxc3 {[%clk 0:02:05]} 25... Qa5 {[%clk 0:02:41.2]} 26. Ng5 {[%clk
0:02:03]} 26... Rb3 {[%clk 0:02:36.3]} 27. Qf4 {[%clk 0:02:03.8]} 27... Rf8
{[%clk 0:02:34.5]} 28. c4 {[%clk 0:01:56.6]} 28... Rb4 {[%clk 0:02:32.4]} 29.
Qd2 {[%clk 0:01:55]} 29... Nb6 {[%clk 0:02:26.6]} 30. Rb1 {[%clk 0:01:41]} 30...
Ra4 {[%clk 0:02:00.9]} 31. Qxa5 {[%clk 0:01:41.1]} 31... Rxa5 {[%clk 0:02:02.8]}
32. Rxb6 {[%clk 0:01:42.1]} 32... dxc4 {[%clk 0:02:04.4]} 33. Rc6 {[%clk
0:01:43.2]} 33... Ra4 {[%clk 0:02:00.7]} 34. Rc1 {[%clk 0:01:43.3]} 34... Ra5
{[%clk 0:02:01.9]} 35. Nf3 {[%clk 0:01:43]} 35... Rd8 {[%clk 0:01:57.5]} 36.
R6xc4 {[%clk 0:01:42.6]} 36... Raa8 {[%clk 0:01:58]} 37. g3 {[%clk 0:01:42.2]}
37... f6 {[%clk 0:01:58.3]} 38. Kg2 {[%clk 0:01:42.4]} 38... Kh7 {[%clk
0:01:59.2]} 39. R1c2 {[%clk 0:01:42.5]} 39... Kh6 {[%clk 0:02:00.1]} 40. Rc6
{[%clk 0:01:42.6]} 40... Re8 {[%clk 0:02:01]} 41. Re2 {[%clk 0:01:43.2]} 41...
Ra3 {[%clk 0:02:00.1]} 42. exf6 {[%clk 0:01:41.7]} 42... gxf6 {[%clk 0:02:02]}
43. Rexe6 {[%clk 0:01:38.7]} 43... Rxe6 {[%clk 0:02:03.9]} 44. Rxe6 {[%clk
0:01:39.3]} 44... f5 {[%clk 0:02:05.1]} 45. Ne5 {[%clk 0:01:39]} 45... Kh5
{[%clk 0:02:05.8]} 46. Nxg6 {[%clk 0:01:37.2]} 46... f4 {[%clk 0:02:07.1]} 47.
Nxf4+ {[%clk 0:01:37.7]} 47... Kg4 {[%clk 0:02:08.4]} 48. Rg6+ {[%clk
0:01:38.1]} 48... Kf5 {[%clk 0:02:09.2]} 49. Rg5+ {[%clk 0:01:39.2]} 49... Ke4
{[%clk 0:02:10.5]} 50. h5 {[%clk 0:01:39.3]} 1-0

[Event "*** MasterClass Titled Tuesday Blitz"]
[Site "Chess.com"]
[Date "2017.10.03"]
[Round "4"]
[White "SCIM"]
[Black "ArnaudovP"]
[Result "0-1"]
[WhiteElo "2419"]
[BlackElo "2466"]
[TimeControl "180+2"]
[EndTime "13:48:23 PDT"]
[Termination "ArnaudovP won by resignation"]

1. d4 {[%clk 0:03:01.9]} 1... Nf6 {[%clk 0:02:59.9]} 2. c4 {[%clk 0:03:01.8]}
2... Nc6 {[%clk 0:03:00.5]} 3. Nf3 {[%clk 0:02:59.3]} 3... e6 {[%clk 0:03:01.3]}
4. Nc3 {[%clk 0:02:57.2]} 4... Bb4 {[%clk 0:03:01.7]} 5. Qc2 {[%clk 0:02:53]}
5... d6 {[%clk 0:03:02.3]} 6. Bd2 {[%clk 0:02:52.3]} 6... O-O {[%clk 0:03:02.4]}
7. e3 {[%clk 0:02:45.5]} 7... Re8 {[%clk 0:02:57.3]} 8. Rd1 {[%clk 0:02:34.7]}
8... Bd7 {[%clk 0:02:56.5]} 9. a3 {[%clk 0:02:28.9]} 9... Bxc3 {[%clk
0:02:57.1]} 10. Bxc3 {[%clk 0:02:30]} 10... e5 {[%clk 0:02:57.2]} 11. dxe5
{[%clk 0:02:29.6]} 11... dxe5 {[%clk 0:02:58]} 12. Be2 {[%clk 0:02:29.8]} 12...
a5 {[%clk 0:02:57.3]} 13. O-O {[%clk 0:02:27.4]} 13... Qe7 {[%clk 0:02:58]} 14.
Rd2 {[%clk 0:02:23.2]} 14... Bg4 {[%clk 0:02:58.2]} 15. Rfd1 {[%clk 0:02:19.4]}
15... Bh5 {[%clk 0:02:57.5]} 16. Nh4 {[%clk 0:01:50.3]} 16... Bxe2 {[%clk
0:02:55.4]} 17. Rxe2 {[%clk 0:01:50.2]} 17... Qe6 {[%clk 0:02:55.2]} 18. b3
{[%clk 0:01:42.3]} 18... a4 {[%clk 0:02:53.4]} 19. Nf3 {[%clk 0:01:31.3]} 19...
axb3 {[%clk 0:02:50.8]} 20. Qxb3 {[%clk 0:01:31.6]} 20... Ne4 {[%clk 0:02:51.7]}
21. Be1 {[%clk 0:01:23.5]} 21... Nc5 {[%clk 0:02:52.1]} 22. Qb5 {[%clk 0:01:18]}
22... b6 {[%clk 0:02:49.3]} 23. Ng5 {[%clk 0:01:03.8]} 23... Qg6 {[%clk
0:02:47.3]} 24. h4 {[%clk 0:01:03.6]} 24... h6 {[%clk 0:02:45.6]} 25. Nf3 {[%clk
0:01:01.8]} 25... e4 {[%clk 0:02:40]} 26. Nd4 {[%clk 0:00:56.4]} 26... Ne5
{[%clk 0:02:40.7]} 27. Bb4 {[%clk 0:00:47.7]} 27... Nf3+ {[%clk 0:02:35.6]} 28.
Kf1 {[%clk 0:00:41.4]} 28... Nxh4 {[%clk 0:02:35.7]} 29. g3 {[%clk 0:00:40.9]}
29... Nf3 {[%clk 0:02:36.3]} 30. Bxc5 {[%clk 0:00:24.1]} 30... Qh5 {[%clk
0:02:32.1]} 31. Nxf3 {[%clk 0:00:11.4]} 31... exf3 {[%clk 0:02:31.1]} 32. Ke1
{[%clk 0:00:12.1]} 32... fxe2 {[%clk 0:02:26.1]} 0-1

[Event "*** MasterClass Titled Tuesday Blitz"]
[Site "Chess.com"]
[Date "2017.10.03"]
[Round "4"]
[White "Indianlad"]
[Black "bilelou"]
[Result "1-0"]
[WhiteElo "2607"]
[BlackElo "2420"]
[TimeControl "180+2"]
[EndTime "13:48:43 PDT"]
[Termination "Indianlad won by resignation"]

1. Nf3 {[%clk 0:03:01.9]} 1... e6 {[%clk 0:03:01.9]} 2. c4 {[%clk 0:03:02.1]}
2... d5 {[%clk 0:03:01.2]} 3. g3 {[%clk 0:03:04]} 3... Nf6 {[%clk 0:03:01.7]} 4.
Bg2 {[%clk 0:03:05]} 4... dxc4 {[%clk 0:03:03.3]} 5. O-O {[%clk 0:03:06.1]} 5...
Nc6 {[%clk 0:02:26.9]} 6. Na3 {[%clk 0:03:06]} 6... Bxa3 {[%clk 0:02:17.1]} 7.
bxa3 {[%clk 0:03:07.9]} 7... e5 {[%clk 0:02:15.2]} 8. Bb2 {[%clk 0:03:08.7]}
8... Qd6 {[%clk 0:02:06.3]} 9. Qa4 {[%clk 0:02:50.9]} 9... b5 {[%clk 0:01:50.1]}
10. Qc2 {[%clk 0:02:51.4]} 10... Rb8 {[%clk 0:01:36.4]} 11. Rac1 {[%clk
0:02:49]} 11... O-O {[%clk 0:01:36.4]} 12. d3 {[%clk 0:02:49.9]} 12... Bf5
{[%clk 0:01:35.4]} 13. Qc3 {[%clk 0:02:48.5]} 13... Nd5 {[%clk 0:01:29.4]} 14.
Qd2 {[%clk 0:02:49.5]} 14... Nb6 {[%clk 0:01:16]} 15. Rfd1 {[%clk 0:02:47.6]}
15... Rfe8 {[%clk 0:01:15.6]} 16. Nh4 {[%clk 0:02:46.1]} 16... Ne7 {[%clk
0:00:54.1]} 17. Qe3 {[%clk 0:02:41.7]} 17... Ned5 {[%clk 0:00:22.6]} 18. Qg5
{[%clk 0:02:28.8]} 18... Bg6 {[%clk 0:00:07.1]} 19. dxc4 {[%clk 0:02:27.9]}
19... bxc4 {[%clk 0:00:08.3]} 20. e4 {[%clk 0:02:27.2]} 20... Qe7 {[%clk
0:00:09.1]} 21. Qxe7 {[%clk 0:02:23]} 21... Nxe7 {[%clk 0:00:11]} 22. Bxe5
{[%clk 0:02:24.9]} 22... Nc6 {[%clk 0:00:11.8]} 23. Bxc7 {[%clk 0:02:25.7]}
23... Rb7 {[%clk 0:00:11.8]} 24. Bxb6 {[%clk 0:02:27.2]} 24... Rxb6 {[%clk
0:00:13.7]} 25. Rxc4 {[%clk 0:02:28.3]} 25... Ne5 {[%clk 0:00:14.2]} 26. Ra4
{[%clk 0:02:28.9]} 26... Bh5 {[%clk 0:00:10.9]} 27. Rc1 {[%clk 0:02:29.3]} 27...
g5 {[%clk 0:00:10]} 28. Nf5 {[%clk 0:02:29.6]} 28... Rb2 {[%clk 0:00:11.1]} 29.
Rxa7 {[%clk 0:02:23.5]} 29... Nf3+ {[%clk 0:00:11.3]} 30. Bxf3 {[%clk 0:02:24]}
30... Bxf3 {[%clk 0:00:13.2]} 31. Nh6+ {[%clk 0:02:25.1]} 31... Kg7 {[%clk
0:00:13.6]} 32. Rxf7+ {[%clk 0:02:24.9]} 32... Kxh6 {[%clk 0:00:13.6]} 33. Rc6+
{[%clk 0:02:25.1]} 33... Kh5 {[%clk 0:00:14]} 34. Rxh7+ {[%clk 0:02:25.5]} 1-0

[Event "*** MasterClass Titled Tuesday Blitz"]
[Site "Chess.com"]
[Date "2017.10.03"]
[Round "4"]
[White "Tibmat"]
[Black "Iball95"]
[Result "1/2-1/2"]
[WhiteElo "2393"]
[BlackElo "2513"]
[TimeControl "180+2"]
[EndTime "13:48:50 PDT"]
[Termination "Game drawn by repetition"]

1. e4 {[%clk 0:02:46.7]} 1... c5 {[%clk 0:02:57.7]} 2. Nf3 {[%clk 0:02:46.1]}
2... g6 {[%clk 0:02:58.3]} 3. d4 {[%clk 0:02:46.5]} 3... cxd4 {[%clk 0:03:00.1]}
4. Qxd4 {[%clk 0:02:48]} 4... Nf6 {[%clk 0:03:00.4]} 5. Nc3 {[%clk 0:02:49.7]}
5... Nc6 {[%clk 0:03:01.2]} 6. Qa4 {[%clk 0:02:51.4]} 6... d6 {[%clk 0:03:02.5]}
7. e5 {[%clk 0:02:53.1]} 7... dxe5 {[%clk 0:03:03.8]} 8. Nxe5 {[%clk 0:02:55]}
8... Bg7 {[%clk 0:03:04.8]} 9. Bb5 {[%clk 0:02:32.8]} 9... O-O {[%clk
0:03:03.5]} 10. Nxc6 {[%clk 0:02:34.4]} 10... bxc6 {[%clk 0:03:05.3]} 11. Bxc6
{[%clk 0:02:36.3]} 11... Bd7 {[%clk 0:03:06.7]} 12. Bxd7 {[%clk 0:02:33.5]}
12... Qxd7 {[%clk 0:03:05.9]} 13. O-O {[%clk 0:02:31.8]} 13... Rfc8 {[%clk
0:02:49.1]} 14. Qxd7 {[%clk 0:02:15.8]} 14... Nxd7 {[%clk 0:02:51]} 15. Rd1
{[%clk 0:02:17.4]} 15... Bxc3 {[%clk 0:02:30.9]} 16. Rxd7 {[%clk 0:02:11.7]}
16... Rd8 {[%clk 0:02:19.1]} 17. Rd3 {[%clk 0:01:53.5]} 17... Bf6 {[%clk
0:02:11]} 18. Kf1 {[%clk 0:01:49.2]} 18... Rxd3 {[%clk 0:02:08.3]} 19. cxd3
{[%clk 0:01:51.1]} 19... Rc8 {[%clk 0:02:09.4]} 20. Be3 {[%clk 0:01:21.1]} 20...
Rc2 {[%clk 0:01:37.8]} 21. Bxa7 {[%clk 0:01:09.8]} 21... Rxb2 {[%clk 0:01:38.7]}
22. Be3 {[%clk 0:00:59.8]} 22... Rc2 {[%clk 0:01:38.8]} 23. d4 {[%clk 0:00:54]}
23... e5 {[%clk 0:01:39.9]} 24. dxe5 {[%clk 0:00:35.4]} 24... Bxe5 {[%clk
0:01:41.8]} 25. Rd1 {[%clk 0:00:29.8]} 25... Rxa2 {[%clk 0:01:41.9]} 26. Rd8+
{[%clk 0:00:31.4]} 26... Kg7 {[%clk 0:01:42.4]} 27. Bd4 {[%clk 0:00:33]} 27...
Bxd4 {[%clk 0:01:36.8]} 28. Rxd4 {[%clk 0:00:34.9]} 28... h5 {[%clk 0:01:38.3]}
29. h4 {[%clk 0:00:35.1]} 29... Kf6 {[%clk 0:01:38.7]} 30. g3 {[%clk 0:00:36.5]}
30... Ke5 {[%clk 0:01:39.3]} 31. Rd7 {[%clk 0:00:37.3]} 31... f6 {[%clk
0:01:39.9]} 32. Kg2 {[%clk 0:00:38.1]} 32... Ke6 {[%clk 0:01:41]} 33. Rb7 {[%clk
0:00:39.5]} 33... Kf5 {[%clk 0:01:42]} 34. Rb5+ {[%clk 0:00:40.6]} 34... Ke6
{[%clk 0:01:43.4]} 35. Rb6+ {[%clk 0:00:42.4]} 35... Kf5 {[%clk 0:01:44.5]} 36.
Rb5+ {[%clk 0:00:43.9]} 36... Ke6 {[%clk 0:01:46.1]} 37. Rb6+ {[%clk 0:00:45.6]}
37... Kf5 {[%clk 0:01:48]} 38. Rb5+ {[%clk 0:00:46.9]} 38... Ke6 {[%clk
0:01:49.7]} 39. Rb6+ {[%clk 0:00:48.6]} 39... Kf5 {[%clk 0:01:51.3]} 40. Rb5+
{[%clk 0:00:50.2]} 40... Ke6 {[%clk 0:01:52.9]} 41. Rb6+ {[%clk 0:00:51.8]}
41... Kf5 {[%clk 0:01:54.3]} 42. Rb5+ {[%clk 0:00:52.5]} 1/2-1/2

[Event "*** MasterClass Titled Tuesday Blitz"]
[Site "Chess.com"]
[Date "2017.10.03"]
[Round "4"]
[White "chess2matters"]
[Black "Vrolijk"]
[Result "0-1"]
[WhiteElo "2304"]
[BlackElo "2461"]
[TimeControl "180+2"]
[EndTime "13:49:00 PDT"]
[Termination "Vrolijk won by resignation"]

1. d4 {[%clk 0:03:01.9]} 1... Nf6 {[%clk 0:03:01.2]} 2. c4 {[%clk 0:03:02.6]}
2... e6 {[%clk 0:03:02.7]} 3. Nc3 {[%clk 0:03:02.6]} 3... Bb4 {[%clk 0:03:02.6]}
4. Qc2 {[%clk 0:03:03.6]} 4... b6 {[%clk 0:03:01]} 5. a3 {[%clk 0:03:01.6]} 5...
Bxc3+ {[%clk 0:03:01.2]} 6. Qxc3 {[%clk 0:03:03.5]} 6... Bb7 {[%clk 0:03:02.3]}
7. Bg5 {[%clk 0:03:04.4]} 7... h6 {[%clk 0:03:02.6]} 8. Bh4 {[%clk 0:03:03.8]}
8... g5 {[%clk 0:03:03.7]} 9. Bg3 {[%clk 0:03:04.8]} 9... Ne4 {[%clk 0:03:04.3]}
10. Qc2 {[%clk 0:03:02.9]} 10... d6 {[%clk 0:03:01.3]} 11. e3 {[%clk 0:03:03.2]}
11... h5 {[%clk 0:03:01.4]} 12. f3 {[%clk 0:03:03.5]} 12... Nxg3 {[%clk
0:03:01.4]} 13. hxg3 {[%clk 0:03:05.4]} 13... Nd7 {[%clk 0:03:02.3]} 14. Bd3
{[%clk 0:03:04.8]} 14... Qf6 {[%clk 0:02:57.9]} 15. Ne2 {[%clk 0:03:04.1]} 15...
O-O-O {[%clk 0:02:59.3]} 16. O-O-O {[%clk 0:03:03]} 16... h4 {[%clk 0:02:58.4]}
17. g4 {[%clk 0:03:01.6]} 17... Kb8 {[%clk 0:02:51.7]} 18. Be4 {[%clk
0:03:00.7]} 18... c6 {[%clk 0:02:49.2]} 19. Kb1 {[%clk 0:02:56.2]} 19... d5
{[%clk 0:02:49.6]} 20. Bd3 {[%clk 0:02:56.4]} 20... c5 {[%clk 0:02:50.9]} 21.
cxd5 {[%clk 0:02:56.1]} 21... Bxd5 {[%clk 0:02:52.8]} 22. Be4 {[%clk 0:02:51.9]}
22... Qe7 {[%clk 0:02:32.9]} 23. Nc3 {[%clk 0:02:51.6]} 23... Nf6 {[%clk
0:02:27.5]} 24. dxc5 {[%clk 0:02:48.4]} 24... Qxc5 {[%clk 0:02:24.2]} 25. Nxd5
{[%clk 0:02:45]} 25... Nxd5 {[%clk 0:02:22.9]} 26. Qxc5 {[%clk 0:02:44.5]} 26...
bxc5 {[%clk 0:02:24.8]} 27. Bxd5 {[%clk 0:02:42.5]} 27... exd5 {[%clk
0:02:26.7]} 28. Kc2 {[%clk 0:02:40.5]} 28... Kc7 {[%clk 0:02:26.3]} 29. Kc3
{[%clk 0:02:39.3]} 29... Rhe8 {[%clk 0:02:26]} 30. Rhe1 {[%clk 0:02:39.1]} 30...
Kc6 {[%clk 0:02:24.9]} 31. b4 {[%clk 0:02:39.3]} 31... Rb8 {[%clk 0:02:07.5]}
32. Rc1 {[%clk 0:02:20.7]} 32... cxb4+ {[%clk 0:01:55]} 33. axb4 {[%clk
0:02:20.8]} 33... Kd6 {[%clk 0:01:54.8]} 34. Ra1 {[%clk 0:02:16.9]} 34... Rec8+
{[%clk 0:01:54.5]} 35. Kd3 {[%clk 0:02:17.6]} 35... Rxb4 {[%clk 0:01:54.3]} 36.
Ra6+ {[%clk 0:02:18]} 36... Ke5 {[%clk 0:01:45.8]} 37. Rxa7 {[%clk 0:02:13.4]}
37... Rb3+ {[%clk 0:01:45.5]} 38. Kd2 {[%clk 0:02:14]} 38... Rb2+ {[%clk
0:01:45]} 39. Kd3 {[%clk 0:02:14.5]} 39... Rcb8 {[%clk 0:01:34.1]} 40. f4+
{[%clk 0:02:12.4]} 40... gxf4 {[%clk 0:01:36]} 41. exf4+ {[%clk 0:02:13.5]}
41... Kxf4 {[%clk 0:01:37.5]} 42. Rxf7+ {[%clk 0:02:13.9]} 42... Kg3 {[%clk
0:01:35.8]} 43. g5 {[%clk 0:02:10.7]} 43... Rg8 {[%clk 0:01:27.9]} 44. Rf5
{[%clk 0:02:07]} 44... Kxg2 {[%clk 0:01:25.2]} 45. Rff1 {[%clk 0:01:53.1]} 45...
Kg3 {[%clk 0:01:24.2]} 46. Re3+ {[%clk 0:01:50]} 46... Kg4 {[%clk 0:01:24.7]}
47. Rg1+ {[%clk 0:01:50.9]} 47... Kh5 {[%clk 0:01:25.9]} 48. Re5 {[%clk
0:01:51]} 48... Rb3+ {[%clk 0:01:25.7]} 49. Kc2 {[%clk 0:01:50.8]} 49... Rg3
{[%clk 0:01:26.8]} 50. Rxg3 {[%clk 0:01:45.7]} 50... hxg3 {[%clk 0:01:28.7]} 51.
Rxd5 {[%clk 0:01:47.3]} 51... Rxg5 {[%clk 0:01:28.4]} 52. Rd1 {[%clk 0:01:47.4]}
52... g2 {[%clk 0:01:28.9]} 53. Rg1 {[%clk 0:01:49]} 53... Kg4 {[%clk
0:01:30.2]} 54. Kd2 {[%clk 0:01:50.6]} 54... Kf3 {[%clk 0:01:31.2]} 0-1

[Event "*** MasterClass Titled Tuesday Blitz"]
[Site "Chess.com"]
[Date "2017.10.03"]
[Round "4"]
[White "Rodalquilar"]
[Black "oskariot"]
[Result "1-0"]
[WhiteElo "2501"]
[BlackElo "2486"]
[TimeControl "180+2"]
[EndTime "13:49:04 PDT"]
[Termination "Rodalquilar won on time"]

1. e4 {[%clk 0:02:59.1]} 1... c5 {[%clk 0:03:00.8]} 2. Nc3 {[%clk 0:02:59.8]}
2... e6 {[%clk 0:03:00.8]} 3. f4 {[%clk 0:03:00.7]} 3... Nc6 {[%clk 0:03:01.1]}
4. Nf3 {[%clk 0:03:01.4]} 4... Nge7 {[%clk 0:03:02]} 5. d3 {[%clk 0:02:49]} 5...
d5 {[%clk 0:02:56.9]} 6. Qe2 {[%clk 0:02:50.1]} 6... g6 {[%clk 0:02:54.4]} 7. g4
{[%clk 0:02:50.2]} 7... Bg7 {[%clk 0:02:33.4]} 8. h4 {[%clk 0:02:50.9]} 8... Nd4
{[%clk 0:02:31.5]} 9. Nxd4 {[%clk 0:02:48.8]} 9... cxd4 {[%clk 0:02:32.2]} 10.
Nd1 {[%clk 0:02:50.1]} 10... dxe4 {[%clk 0:02:33.5]} 11. dxe4 {[%clk 0:02:49.8]}
11... h5 {[%clk 0:02:24.8]} 12. g5 {[%clk 0:02:50.6]} 12... e5 {[%clk
0:02:12.4]} 13. Nf2 {[%clk 0:02:51.4]} 13... exf4 {[%clk 0:01:51.9]} 14. Bxf4
{[%clk 0:02:50.8]} 14... Qb6 {[%clk 0:01:51.5]} 15. Qb5+ {[%clk 0:02:40.2]}
15... Qxb5 {[%clk 0:01:52.1]} 16. Bxb5+ {[%clk 0:02:42.1]} 16... Bd7 {[%clk
0:01:54]} 17. Bxd7+ {[%clk 0:02:30.9]} 17... Kxd7 {[%clk 0:01:55.9]} 18. O-O-O
{[%clk 0:02:32.6]} 18... Nc6 {[%clk 0:01:50.9]} 19. Nd3 {[%clk 0:02:13.5]} 19...
Rhe8 {[%clk 0:01:51.3]} 20. Nc5+ {[%clk 0:02:05.3]} 20... Kc8 {[%clk 0:01:51.8]}
21. Rhf1 {[%clk 0:01:16.1]} 21... b6 {[%clk 0:01:42.3]} 22. Na6 {[%clk
0:01:17.4]} 22... Re7 {[%clk 0:01:43.1]} 23. Nc7 {[%clk 0:01:17.7]} 23... Rxc7
{[%clk 0:00:11.7]} 24. Bxc7 {[%clk 0:01:18.2]} 24... f5 {[%clk 0:00:06.5]} 25.
gxf6 {[%clk 0:01:13.3]} 1-0

[Event "*** MasterClass Titled Tuesday Blitz"]
[Site "Chess.com"]
[Date "2017.10.03"]
[Round "4"]
[White "pandamaster3000"]
[Black "toad"]
[Result "1-0"]
[WhiteElo "2139"]
[BlackElo "2136"]
[TimeControl "180+2"]
[EndTime "13:49:15 PDT"]
[Termination "pandamaster3000 won by checkmate"]

1. e4 {[%clk 0:03:01.9]} 1... c5 {[%clk 0:03:00.7]} 2. Nf3 {[%clk 0:03:01.2]}
2... d6 {[%clk 0:03:01.9]} 3. Bb5+ {[%clk 0:03:01.4]} 3... Nd7 {[%clk
0:03:02.5]} 4. d4 {[%clk 0:03:02.1]} 4... cxd4 {[%clk 0:03:02.4]} 5. Qxd4 {[%clk
0:03:04]} 5... a6 {[%clk 0:03:01.6]} 6. Bxd7+ {[%clk 0:03:04.6]} 6... Bxd7
{[%clk 0:03:02.2]} 7. c4 {[%clk 0:03:06.1]} 7... Bc6 {[%clk 0:02:56.1]} 8. Nc3
{[%clk 0:03:05.6]} 8... f5 {[%clk 0:02:55.2]} 9. exf5 {[%clk 0:02:45]} 9... Bxf3
{[%clk 0:02:55.4]} 10. gxf3 {[%clk 0:02:46.9]} 10... Nf6 {[%clk 0:02:50.8]} 11.
Bg5 {[%clk 0:02:39.2]} 11... Rc8 {[%clk 0:02:44.9]} 12. O-O-O {[%clk 0:01:52.2]}
12... Qc7 {[%clk 0:02:30.6]} 13. b3 {[%clk 0:01:49.7]} 13... b5 {[%clk
0:02:29.4]} 14. Bxf6 {[%clk 0:01:48.3]} 14... gxf6 {[%clk 0:02:25.2]} 15. Nd5
{[%clk 0:01:48.9]} 15... Qc5 {[%clk 0:01:09.3]} 16. Qe4 {[%clk 0:01:39.5]} 16...
bxc4 {[%clk 0:00:55.7]} 17. Kb1 {[%clk 0:00:57.3]} 17... cxb3 {[%clk 0:00:27.3]}
18. axb3 {[%clk 0:00:43.9]} 18... Qa3 {[%clk 0:00:21.5]} 19. Rd3 {[%clk
0:00:24.7]} 19... Rg8 {[%clk 0:00:18.7]} 20. Qe6 {[%clk 0:00:24.7]} 20... Rg2
{[%clk 0:00:14.5]} 21. Nxf6+ {[%clk 0:00:24.2]} 21... Kd8 {[%clk 0:00:15.4]} 22.
Qd7# {[%clk 0:00:25.6]} 1-0